bitfinex-derivatives/quotes_SOLF0:USTF0_20250911
["timestamp","ask_amount","ask_price","bid_price","bid_amount"]
[1757615155714,7.32,226.37,226.31,0.03005708]
[1757615156112,3.44570872,226.34,226.31,0.03005708]
[1757615156315,7.32,226.33,226.31,0.03005708]
[1757615158806,7.32,226.33,226.21,0.49]
[1757615160313,7.32,226.33,226.15,29.02]
[1757615160314,2.20531674,226.26,226.16,0.52]
[1757615162020,2.20531674,226.26,226.16,14.04751109]
[1757615162216,2.20531674,226.26,226.17,0.52]
[1757615162621,2.20531674,226.26,226.19,0.52]
[1757615165223,2.20531674,226.26,226.12,7.43197119]
[1757615165515,2.20531674,226.13,226.03,0.52]
[1757615165719,7.15,226.12,226.03,0.52]
[1757615168322,7.15,226.12,226.03,62.52]
[1757615170420,2.20531674,226.15,226.03,62.52]
[1757615170421,7.15,226.14,226.03,0.52]
[1757615173416,7.15,226.14,226.03,62.52]
[1757615174224,9.35531674,226.2,226.05,0.52]
[1757615175218,9.35531674,226.2,226.06,0.52]
[1757615175624,7.15,226.2,226.09,0.52]
[1757615177628,7.15,226.2,226.1,2.20531674]
[1757615177823,7.15,226.2,226.11,0.52]
[1757615178326,2.20531674,226.3,226.14,0.52]
[1757615178528,7.15,226.29,226.13,0.52]
[1757615178729,7.15,226.29,226.17,0.52]
[1757615180026,7.15,226.29,226.17,62.52]
[1757615180833,7.15,226.29,226.18,0.52]
[1757615181233,7.15,226.29,226.19,2.20531674]
[1757615181534,7.15,226.29,226.2,0.52]
[1757615184236,7.15,226.29,226.2,62.52]
[1757615187139,7.15,226.29,226.2,0.52]
[1757615187641,7.12,226.26,226.16,0.53]
[1757615191043,7.12,226.33,226.19,0.53]
[1757615192039,27.52,226.39,226.19,0.53]
[1757615192040,2.20531674,226.31,226.19,0.53]
[1757615192240,7.12,226.3,226.19,0.53]
[1757615193541,7.12,226.3,226.17,11.88]
[1757615193742,27.52,226.39,226.17,11.88]
[1757615193942,2.20531674,226.28,226.17,11.88]
[1757615194136,7.12,226.27,226.17,11.88]
[1757615194437,2.20531674,226.28,226.17,11.88]
[1757615194641,7.12,226.27,226.17,11.88]
[1757615195147,2.20531674,226.28,226.17,11.88]
[1757615195348,7.12,226.27,226.17,11.88]
[1757615196541,2.20531674,226.28,226.17,11.88]
[1757615196947,7.12,226.27,226.17,11.88]
[1757615197148,2.20531674,226.28,226.17,11.88]
[1757615197349,7.12,226.27,226.17,11.88]
[1757615197848,2.20531674,226.28,226.17,11.88]
[1757615198849,7.12,226.27,226.17,11.88]
[1757615199050,7.12,226.27,226.18,0.53]
[1757615199445,2.20531674,226.28,226.17,11.88]
[1757615200051,7.12,226.27,226.17,11.88]
[1757615200250,7.12,226.27,226.17,12.41]
[1757615200646,2.20531674,226.28,226.17,12.41]
[1757615200850,7.12,226.27,226.17,12.41]
[1757615201051,2.20531674,226.28,226.17,12.41]
[1757615201448,7.12,226.27,226.17,12.41]
[1757615202552,2.20531674,226.28,226.17,12.41]
[1757615202754,7.12,226.27,226.17,12.41]
[1757615204755,2.20531674,226.25,226.17,12.41]
[1757615204955,7.12,226.24,226.17,12.41]
[1757615207856,7.12,226.24,226.13,0.53]
[1757615208054,7.12,226.15,226.04,0.53]
[1757615208254,7.12,226.12,226.04,0.53]
[1757615208954,7.12,226.12,226.0,7.43197119]
[1757615209161,7.12,226.09,225.97,0.53]
[1757615211061,7.12,226.09,225.98,62.0]
[1757615212268,7.12,226.09,225.99,0.54]
[1757615212659,2.20531674,226.15,226.0,0.54]
[1757615212867,2.20531674,226.15,226.03,0.54]
[1757615213765,7.12,226.16,226.03,0.54]
[1757615215675,7.12,226.16,226.04,62.0]
[1757615216175,7.12,226.15,226.04,62.0]
[1757615217179,9.32531674,226.15,226.04,62.0]
[1757615219879,2.20531674,226.15,226.04,62.0]
[1757615220078,6.96,226.14,226.03,0.54]
[1757615220977,6.96,226.11,226.01,5.14]
[1757615221381,26.38,226.23,226.0,0.53]
[1757615221382,6.96,226.08,226.0,0.53]
[1757615221877,6.96,226.08,225.97,1.29993706]
[1757615223078,6.96,226.08,225.97,63.29993706]
[1757615223982,6.96,226.1,225.93,0.53]
[1757615224379,6.96,226.1,225.93,1.30003076]
[1757615226586,6.96,226.1,225.94,0.53]
[1757615226781,10.41187898,226.1,225.94,0.53]
[1757615226976,6.96,226.09,225.95,62.0]
[1757615227385,10.41187898,226.09,225.94,0.53]
[1757615228386,23.87187898,226.09,225.94,0.53]
[1757615229283,10.41187898,226.09,225.94,0.53]
[1757615229481,6.96,226.09,225.94,0.53]
[1757615230280,6.96,226.09,225.96,0.53]
[1757615232782,6.96,226.09,225.93,0.77003076]
[1757615234787,6.96,226.09,225.94,0.53]
[1757615237885,0.03081192,226.04,225.99,0.03172206]
[1757615238087,6.96,226.03,225.99,0.03172206]
[1757615238286,6.96,226.03,225.94,0.53]
[1757615238487,0.03081192,226.04,225.99,0.02891849]
[1757615239185,6.96,226.03,225.99,0.02891849]
[1757615239383,0.03081192,226.04,225.99,0.02891849]
[1757615239990,6.96,226.03,225.99,0.02891849]
[1757615240184,0.03081192,226.04,225.99,0.02891849]
[1757615240392,6.96,226.03,225.99,0.55891849]
[1757615241387,6.96,226.03,225.99,0.02891849]
[1757615241890,6.96,226.03,225.99,0.55891849]
[1757615242487,6.96,226.03,225.99,0.02891849]
[1757615243283,0.03081192,226.04,225.99,0.02891849]
[1757615243883,6.96,226.03,225.99,0.02891849]
[1757615244490,0.03081192,226.04,225.99,0.02891849]
[1757615244888,0.03081192,226.04,226.02,0.53]
[1757615245087,0.03081192,226.04,226.03,0.97]
[1757615245287,0.03081192,226.04,226.03,0.53]
[1757615245489,6.96,226.14,226.03,0.97]
[1757615245690,6.96,226.14,226.07,3.45187898]
[1757615246991,6.96,226.14,226.08,0.03310864]
[1757615256795,7.56,226.12,226.01,3.45187898]
[1757615257595,7.56,226.12,226.0,87.8]
[1757615257996,7.56,226.12,226.04,0.0314151]
[1757615258696,0.03134925,226.1,226.04,0.0314151]
[1757615259093,7.56,226.09,226.04,0.0314151]
[1757615259500,0.03134925,226.1,226.04,0.0314151]
[1757615259696,7.56,226.09,226.04,0.0314151]
[1757615266100,3.72921368,226.08,226.04,0.0314151]
[1757615266304,7.56,226.09,226.04,0.0314151]
[1757615266504,7.56,226.07,226.04,0.0314151]
[1757615266703,7.56,226.09,226.04,0.0314151]
[1757615266905,7.56,226.07,226.04,0.0314151]
[1757615267108,7.56,226.09,226.04,0.0314151]
[1757615267704,7.56,226.07,226.04,0.0314151]
[1757615267904,7.56,226.09,226.04,0.0314151]
[1757615270410,3.72894486,226.08,226.04,0.0314151]
[1757615270607,0.03134925,226.1,226.04,0.0314151]
[1757615270804,7.56,226.08,226.04,0.0314151]
[1757615271109,7.56,226.09,226.04,0.0314151]
[1757615271306,7.56,226.07,226.04,0.0314151]
[1757615271503,7.56,226.09,226.04,0.0314151]
[1757615271705,7.56,226.07,226.04,0.0314151]
[1757615271911,7.56,226.09,226.04,0.0314151]
[1757615272110,3.73029115,226.08,226.04,0.0314151]
[1757615272309,7.56,226.09,226.04,0.0314151]
[1757615272506,7.56,226.07,226.04,0.0314151]
[1757615272708,7.56,226.09,226.04,0.0314151]
[1757615272903,3.73019976,226.08,226.04,0.0314151]
[1757615273106,7.56,226.09,226.04,0.0314151]
[1757615273409,7.56,226.07,226.04,0.0314151]
[1757615273609,7.56,226.09,226.04,0.0314151]
[1757615273804,7.56,226.07,226.04,0.0314151]
[1757615274008,3.73048858,226.08,226.04,0.0314151]
[1757615274009,0.03134925,226.1,226.04,0.0314151]
[1757615274209,7.56,226.08,226.04,0.0314151]
[1757615274411,0.03134925,226.1,226.04,0.0314151]
[1757615274617,7.24892418,226.09,226.04,0.0314151]
[1757615274802,7.56,226.07,226.04,0.0314151]
[1757615275006,7.56,226.09,226.04,0.0314151]
[1757615275210,7.56,226.07,226.04,0.0314151]
[1757615275408,7.56,226.09,226.04,0.0314151]
[1757615275607,7.56,226.07,226.04,0.0314151]
[1757615275810,7.56,226.09,226.04,0.0314151]
[1757615276113,7.56,226.07,226.04,0.0314151]
[1757615276308,7.56,226.09,226.04,0.0314151]
[1757615276612,3.73034491,226.08,226.04,0.0314151]
[1757615276811,7.56,226.09,226.04,0.0314151]
[1757615277013,7.56,226.07,226.04,0.0314151]
[1757615277212,7.56,226.09,226.04,0.0314151]
[1757615277410,6.94,226.07,226.04,0.0314151]
[1757615277713,0.03134925,226.1,226.04,0.0314151]
[1757615277914,6.94,226.08,226.04,0.0314151]
[1757615278106,6.94,226.09,226.04,0.0314151]
[1757615278305,3.73021416,226.08,226.04,0.0314151]
[1757615278508,6.94,226.09,226.04,0.0314151]
[1757615278715,7.24762013,226.08,226.04,0.0314151]
[1757615279016,6.94,226.09,226.04,0.0314151]
[1757615279211,7.24679583,226.08,226.04,0.0314151]
[1757615279411,6.94,226.09,226.04,0.0314151]
[1757615279612,6.94,226.07,226.04,0.0314151]
[1757615279812,6.94,226.09,226.04,0.0314151]
[1757615280010,6.94,226.07,226.04,0.0314151]
[1757615280210,6.94,226.09,226.04,0.0314151]
[1757615280410,3.51685789,226.08,226.04,0.0314151]
[1757615280611,6.94,226.09,226.04,0.0314151]
[1757615280912,0.03134925,226.1,226.04,0.0314151]
[1757615281116,6.94,226.08,226.04,0.0314151]
[1757615281315,0.03134925,226.1,226.04,0.0314151]
[1757615281516,6.94,226.08,226.04,0.0314151]
[1757615281715,6.94,226.09,226.04,0.0314151]
[1757615282512,2.20919591,226.08,226.04,0.0314151]
[1757615282718,6.94,226.07,226.04,0.0314151]
[1757615284217,2.20919591,226.08,226.04,0.0314151]
[1757615284915,6.94,226.07,226.04,0.0314151]
[1757615285918,2.20919591,226.08,226.04,0.0314151]
[1757615286116,6.94,226.07,226.04,0.0314151]
[1757615286310,2.20919591,226.08,226.04,0.0314151]
[1757615287020,6.94,226.07,226.04,0.0314151]
[1757615287217,2.20919591,226.08,226.04,0.0314151]
[1757615287621,9.14919591,226.05,226.04,0.0314151]
[1757615291022,6.94,226.05,226.04,0.0314151]
[1757615291222,9.14919591,226.05,226.04,0.0314151]
[1757615292527,0.03134925,226.1,226.04,0.6014151]
[1757615292729,6.94,226.08,226.04,0.6014151]
[1757615293131,6.94,226.08,226.05,0.57]
[1757615293330,6.94,226.08,226.04,0.0314151]
[1757615293331,2.20919591,226.09,226.06,0.57]
[1757615294634,2.20919591,226.09,226.05,0.57]
[1757615294834,2.20919591,226.09,226.04,0.0314151]
[1757615295034,2.20919591,226.09,226.04,0.6014151]
[1757615295234,2.20919591,226.09,226.04,0.0314151]
[1757615295430,2.20919591,226.09,226.05,0.57]
[1757615295630,9.14919591,226.09,226.05,0.57]
[1757615296239,0.03134925,226.1,226.04,0.0314151]
[1757615296436,0.03134925,226.1,226.05,0.57]
[1757615298036,0.03134925,226.1,226.07,0.57]
[1757615298539,0.03134925,226.1,226.09,0.57]
[1757615298938,0.03134925,226.1,226.09,1.01]
[1757615299631,0.03134925,226.1,226.09,0.57]
[1757615299830,0.03134925,226.1,226.04,0.0314151]
[1757615300636,0.03134925,226.1,226.05,0.57]
[1757615300837,0.03134925,226.1,226.04,0.0314151]
[1757615301141,0.03134925,226.1,226.05,0.57]
[1757615301334,0.03134925,226.1,226.04,0.0314151]
[1757615301533,0.03134925,226.1,226.05,0.57]
[1757615301835,0.03134925,226.1,226.04,0.0314151]
[1757615302036,0.03134925,226.1,226.05,0.57]
[1757615302437,0.03134925,226.1,226.04,0.0314151]
[1757615303031,0.03134925,226.1,226.05,0.57]
[1757615303235,0.03134925,226.1,226.06,0.57]
[1757615303436,0.03134925,226.1,226.05,0.57]
[1757615303637,0.03134925,226.1,226.04,0.0314151]
[1757615304138,0.03134925,226.1,226.05,0.57]
[1757615304733,0.03134925,226.1,226.04,0.0314151]
[1757615304931,0.03134925,226.1,226.05,0.57]
[1757615305137,0.03134925,226.1,226.04,0.0314151]
[1757615305839,0.03134925,226.1,226.05,0.57]
[1757615306435,0.03134925,226.1,226.06,1.01]
[1757615306632,6.94,226.25,226.07,0.54]
[1757615306940,6.94,226.21,226.1,0.54]
[1757615307140,6.94,226.18,226.1,0.54]
[1757615307841,6.94,226.18,226.12,0.02844737]
[1757615308239,9.14919591,226.18,226.12,0.02844737]
[1757615308435,6.94,226.18,226.12,0.02844737]
[1757615312745,6.82,226.15,226.12,0.02844737]
[1757615313044,2.20919591,226.16,226.12,0.02844737]
[1757615313445,6.82,226.15,226.12,0.02844737]
[1757615313846,13.25186802,226.27,226.12,0.02844737]
[1757615314140,6.82,226.14,226.06,0.53]
[1757615314745,6.82,226.14,226.08,0.03109393]
[1757615318039,2.20919591,226.12,226.08,0.03109393]
[1757615318549,6.82,226.11,226.08,0.03109393]
[1757615319550,2.20919591,226.12,226.08,0.03109393]
[1757615319747,6.82,226.11,226.08,0.03109393]
[1757615319947,6.82,226.14,226.08,0.03109393]
[1757615320248,2.20919591,226.13,226.08,0.03109393]
[1757615320546,6.82,226.12,226.08,0.03109393]
[1757615321450,2.20919591,226.13,226.08,0.03109393]
[1757615321754,6.82,226.12,226.08,0.03109393]
[1757615323043,2.20919591,226.13,226.08,0.03109393]
[1757615323247,6.82,226.12,226.08,0.03109393]
[1757615323649,2.20919591,226.13,226.08,0.03109393]
[1757615323848,6.82,226.12,226.08,0.03109393]
[1757615324356,2.20919591,226.13,226.08,0.03109393]
[1757615324551,6.82,226.12,226.08,0.03109393]
[1757615324856,2.20919591,226.13,226.08,0.03109393]
[1757615325155,49.0,226.15,226.08,0.03109393]
[1757615325356,9.02919591,226.14,226.08,0.03109393]
[1757615325655,6.82,226.14,226.08,0.03109393]
[1757615325850,9.02919591,226.14,226.08,0.03109393]
[1757615327852,6.82,226.14,226.08,0.03109393]
[1757615328257,9.02919591,226.14,226.08,0.03109393]
[1757615329650,6.82,226.14,226.08,0.03109393]
[1757615329956,9.02919591,226.14,226.08,0.03109393]
[1757615342568,6.82,226.14,226.08,0.03109393]
[1757615344569,6.82,226.14,226.09,0.54]
[1757615344773,12.38,226.19,226.09,4.93957256]
[1757615345069,10.67321523,226.18,226.09,0.54]
[1757615345262,7.21,226.18,226.09,5.47957256]
[1757615345462,7.21,226.18,226.12,0.0298384]
[1757615346174,7.21,226.16,226.12,0.0298384]
[1757615348975,7.21,226.25,226.13,0.54]
[1757615349174,7.21,226.23,226.13,0.54]
[1757615349473,7.21,226.21,226.13,0.54]
[1757615349675,7.21,226.21,226.16,0.03082289]
[1757615349873,51.23,226.25,226.16,0.03082289]
[1757615350072,7.21,226.23,226.16,0.03082289]
[1757615350373,7.21,226.21,226.16,0.03082289]
[1757615350579,7.21,226.25,226.16,0.03082289]
[1757615350876,7.21,226.23,226.16,0.03082289]
[1757615351077,7.21,226.21,226.16,0.03082289]
[1757615351276,7.21,226.25,226.16,0.03082289]
[1757615351477,7.21,226.23,226.16,0.03082289]
[1757615351778,7.21,226.21,226.16,0.03082289]
[1757615351978,7.21,226.25,226.16,0.03082289]
[1757615352182,7.21,226.23,226.16,0.03082289]
[1757615352480,7.21,226.23,226.17,0.54]
[1757615354574,7.21,226.23,226.16,0.03082289]
[1757615361681,7.21,226.23,226.16,0.57082289]
[1757615368285,0.03337931,226.22,226.16,0.57082289]
[1757615369486,0.03337931,226.22,226.17,0.53]
[1757615370785,0.03337931,226.22,226.18,0.53]
[1757615371091,0.03337931,226.22,226.21,0.53]
[1757615371476,6.85,226.42,226.22,0.5]
[1757615371687,6.85,226.4,226.22,0.5]
[1757615371887,6.85,226.38,226.22,0.5]
[1757615372087,3.45136831,226.37,226.22,0.5]
[1757615372279,6.85,226.36,226.22,0.5]
[1757615372688,3.44909462,226.41,226.23,0.5]
[1757615372889,13.67633316,226.4,226.27,0.02895405]
[1757615373088,6.85,226.38,226.27,0.02895405]
[1757615373284,6.85,226.36,226.23,0.5]
[1757615373477,6.85,226.36,226.3,0.03196659]
[1757615386288,6.85,226.36,226.31,0.5]
[1757615386487,6.85,226.45,226.31,0.5]
[1757615386692,6.85,226.43,226.31,0.5]
[1757615386898,3.47370386,226.42,226.31,0.5]
[1757615387091,6.85,226.4,226.35,0.0316198]
[1757615387289,6.85,226.45,226.35,0.0316198]
[1757615387491,6.85,226.43,226.35,0.0316198]
[1757615387697,6.85,226.41,226.35,0.0316198]
[1757615395606,6.85,226.49,226.36,0.49]
[1757615395901,6.85,226.47,226.36,0.49]
[1757615396103,3.47419113,226.46,226.36,0.49]
[1757615396306,6.85,226.47,226.4,0.0301418]
[1757615402615,3.44909462,226.5,226.4,0.0301418]
[1757615402814,7.45,226.49,226.4,0.0301418]
[1757615404412,7.45,226.44,226.4,0.0301418]
[1757615404818,7.45,226.44,226.37,0.49]
[1757615405019,2.2018232,226.45,226.4,0.02876946]
[1757615405216,7.45,226.44,226.4,0.02876946]
[1757615405525,2.2018232,226.45,226.4,0.02876946]
[1757615406021,7.45,226.44,226.4,0.02876946]
[1757615406218,2.2018232,226.45,226.4,0.02876946]
[1757615406420,7.45,226.44,226.4,0.02876946]
[1757615406612,2.2018232,226.51,226.41,0.49]
[1757615406922,9.6518232,226.51,226.41,0.49]
[1757615407123,9.6518232,226.51,226.44,0.03052684]
[1757615407724,7.45,226.47,226.44,0.03052684]
[1757615408016,7.45,226.47,226.37,0.49]
[1757615408417,2.2018232,226.45,226.43,0.03253845]
[1757615408626,7.45,226.44,226.43,0.03253845]
[1757615418430,2.2018232,226.49,226.43,0.03253845]
[1757615418627,7.45,226.48,226.43,0.03253845]
[1757615418827,7.45,226.49,226.43,0.03253845]
[1757615420723,9.6518232,226.49,226.43,0.03253845]
[1757615421722,7.45,226.45,226.43,0.03253845]
[1757615422231,7.45,226.44,226.43,0.03253845]
[1757615423026,7.45,226.44,226.32,0.49]
[1757615423224,4.9264476,226.57,226.39,0.52]
[1757615423428,6.85145729,226.56,226.49,0.52]
[1757615423625,12.3764476,226.72,226.54,2.2018232]
[1757615423826,9.6518232,226.7,226.57,2.2018232]
[1757615424027,7.45,226.68,226.57,2.2018232]
[1757615424327,7.45,226.68,226.61,0.02862533]
[1757615426337,7.45,226.68,226.62,3.95935597]
[1757615426537,7.45,226.7,226.63,3.95935597]
[1757615426727,7.45,226.7,226.64,3.95935597]
[1757615427036,7.45,226.7,226.65,3.95935597]
[1757615427237,7.45,226.7,226.61,0.02862533]
[1757615427535,7.45,226.7,226.62,3.9573307]
[1757615427836,7.45,226.7,226.63,3.9573307]
[1757615428031,7.45,226.7,226.64,3.9573307]
[1757615428232,13.91917178,226.77,226.65,3.9573307]
[1757615428233,7.15,226.72,226.65,3.9573307]
[1757615428436,7.15,226.72,226.61,0.02862533]
[1757615428636,7.15,226.72,226.62,3.9552497]
[1757615428831,7.15,226.72,226.64,0.02903634]
[1757615429137,7.15,226.72,226.65,3.9552497]
[1757615429337,7.15,226.72,226.66,3.9552497]
[1757615429531,7.15,226.75,226.67,3.9552497]
[1757615429730,7.15,226.75,226.68,3.9552497]
[1757615430032,7.15,226.75,226.69,3.9552497]
[1757615430234,7.15,226.75,226.69,0.03062127]
[1757615432837,2.2018232,226.72,226.61,0.51]
[1757615433034,7.15,226.71,226.62,3.94632878]
[1757615433235,7.15,226.71,226.63,3.94632878]
[1757615433437,7.15,226.71,226.64,3.94632878]
[1757615433634,7.15,226.71,226.65,3.94632878]
[1757615433827,7.15,226.71,226.6,2.2018232]
[1757615434032,7.15,226.71,226.65,0.03000008]
[1757615435142,7.15,226.71,226.66,3.94531232]
[1757615435435,7.15,226.71,226.65,0.03000008]
[1757615435636,7.15,226.72,226.65,0.03000008]
[1757615436837,7.15,226.66,226.53,0.57]
[1757615437037,2.2018232,226.64,226.55,2.2018232]
[1757615437241,7.15,226.63,226.56,3.94437126]
[1757615437540,7.15,226.63,226.57,3.94437126]
[1757615437741,7.15,226.64,226.58,3.94437126]
[1757615437938,7.15,226.64,226.59,3.94437126]
[1757615438136,2.2018232,226.65,226.6,3.94437126]
[1757615438137,0.02887226,226.63,226.6,3.94437126]
[1757615438444,7.15,226.62,226.52,2.2018232]
[1757615438641,9.3518232,226.62,226.53,3.94637794]
[1757615438848,9.3518232,226.62,226.54,3.94637794]
[1757615439042,0.03101245,226.6,226.55,3.94637794]
[1757615439243,0.03101245,226.6,226.56,3.94637794]
[1757615439439,0.03101245,226.6,226.57,3.94637794]
[1757615439639,7.15,226.59,226.58,3.94637794]
[1757615439843,7.15,226.59,226.49,2.7718232]
[1757615440141,7.15,226.59,226.5,3.94777279]
[1757615440444,7.15,226.59,226.51,3.94777279]
[1757615440645,7.15,226.59,226.52,3.94777279]
[1757615440845,7.15,226.59,226.53,3.94777279]
[1757615441046,7.15,226.59,226.49,2.7718232]
[1757615441047,0.03101245,226.6,226.54,3.94777279]
[1757615441246,0.03101245,226.6,226.55,3.94777279]
[1757615441446,0.03101245,226.6,226.56,3.94777279]
[1757615441648,0.03101245,226.6,226.57,3.94777279]
[1757615441845,7.15,226.59,226.58,3.94777279]
[1757615444147,9.3518232,226.59,226.49,0.57]
[1757615444346,7.15,226.55,226.45,4.52]
[1757615445049,7.18233891,226.52,226.45,4.52]
[1757615450654,7.18233891,226.52,226.37,62.0]
[1757615450855,9.38416211,226.52,226.41,2.2018232]
[1757615451054,9.3518232,226.52,226.41,2.2018232]
[1757615451253,7.15,226.48,226.41,2.2018232]
[1757615451453,7.15,226.48,226.38,4.53]
[1757615451653,7.15,226.48,226.39,2.2018232]
[1757615453355,7.15,226.48,226.4,4.53]
[1757615454151,7.15,226.48,226.37,2.2018232]
[1757615454951,2.2018232,226.46,226.36,4.53]
[1757615455157,7.15,226.45,226.36,4.53]
[1757615455657,7.15,226.42,226.39,0.02993354]
[1757615456250,0.03002213,226.43,226.39,0.02993354]
[1757615456858,7.15,226.42,226.39,0.02993354]
[1757615457558,2.23184533,226.43,226.39,0.02993354]
[1757615457750,7.5,226.42,226.39,0.02993354]
[1757615458155,2.23184533,226.43,226.39,0.02993354]
[1757615458857,7.5,226.42,226.39,0.02993354]
[1757615459156,2.23184533,226.43,226.39,0.02993354]
[1757615459358,7.5,226.42,226.39,0.02993354]
[1757615459556,2.23184533,226.43,226.39,0.02993354]
[1757615459755,7.5,226.42,226.39,0.02993354]
[1757615459954,2.23184533,226.43,226.39,0.02993354]
[1757615460254,0.03002213,226.43,226.39,0.02993354]
[1757615460449,7.5,226.42,226.39,0.02993354]
[1757615460654,0.03002213,226.43,226.39,0.02993354]
[1757615461156,7.5,226.42,226.39,0.02993354]
[1757615462658,0.03002213,226.43,226.39,0.02993354]
[1757615462858,7.5,226.42,226.39,0.02993354]
[1757615463258,0.03002213,226.43,226.41,4.53]
[1757615463554,7.5,226.42,226.39,2.23175674]
[1757615463757,7.5,226.42,226.39,0.02993354]
[1757615464660,0.03002213,226.43,226.39,0.02993354]
[1757615465059,7.5,226.42,226.39,0.02993354]
[1757615465358,0.03002213,226.43,226.39,0.02993354]
[1757615465562,7.5,226.42,226.39,0.02993354]
[1757615466162,7.5,226.42,226.39,4.55993354]
[1757615466357,7.5,226.42,226.39,0.02993354]
[1757615468558,0.03002213,226.43,226.39,0.02993354]
[1757615469564,7.5,226.42,226.39,0.02993354]
[1757615469763,0.03002213,226.43,226.39,0.02993354]
[1757615469964,7.5,226.42,226.39,0.02993354]
[1757615470259,0.03002213,226.43,226.39,0.02993354]
[1757615470764,7.5,226.42,226.39,0.02993354]
[1757615470965,0.03002213,226.43,226.39,0.02993354]
[1757615472267,7.5,226.42,226.39,0.02993354]
[1757615472466,0.03002213,226.43,226.39,0.02993354]
[1757615473463,7.5,226.42,226.39,0.02993354]
[1757615473662,0.03002213,226.43,226.39,0.02993354]
[1757615474169,7.5,226.42,226.39,0.02993354]
[1757615474367,0.03002213,226.43,226.39,0.02993354]
[1757615474961,7.5,226.42,226.39,0.02993354]
[1757615476058,0.03002213,226.43,226.39,0.02993354]
[1757615476268,7.5,226.42,226.39,0.02993354]
[1757615476865,0.03002213,226.43,226.39,0.02993354]
[1757615477270,7.5,226.42,226.39,0.02993354]
[1757615477467,7.5,226.41,226.39,0.02993354]
[1757615477665,7.5,226.42,226.39,0.02993354]
[1757615477867,0.03002213,226.43,226.39,0.02993354]
[1757615478572,7.5,226.42,226.39,0.02993354]
[1757615478768,0.03002213,226.43,226.39,0.02993354]
[1757615478968,7.5,226.42,226.39,0.02993354]
[1757615479471,0.03002213,226.43,226.39,0.02993354]
[1757615479771,7.5,226.42,226.39,0.02993354]
[1757615480171,0.03002213,226.43,226.39,0.02993354]
[1757615480371,7.5,226.42,226.39,0.02993354]
[1757615480666,0.03002213,226.43,226.39,0.02993354]
[1757615480867,7.5,226.42,226.39,0.02993354]
[1757615481072,0.03002213,226.43,226.39,0.02993354]
[1757615481771,7.5,226.42,226.39,0.02993354]
[1757615482972,0.03002213,226.43,226.39,0.02993354]
[1757615483377,0.03002213,226.43,226.4,4.52]
[1757615484969,0.03002213,226.43,226.39,0.02993354]
[1757615485868,0.03002213,226.43,226.4,4.52]
[1757615486070,7.53002213,226.43,226.4,4.52]
[1757615487767,0.03002213,226.43,226.39,0.02993354]
[1757615487970,7.04,226.42,226.39,0.02993354]
[1757615488169,7.04,226.42,226.32,4.52]
[1757615488170,10.4801881,226.42,226.32,4.52]
[1757615488371,7.04,226.41,226.24,4.52]
[1757615488564,7.04,226.37,226.24,4.52]
[1757615488769,3.6622782,226.36,226.24,4.52]
[1757615488969,3.6622782,226.35,226.24,4.52]
[1757615489272,3.6622782,226.34,226.24,4.52]
[1757615489470,7.04,226.37,226.24,4.52]
[1757615489471,3.6622782,226.33,226.24,4.52]
[1757615489669,0.03107629,226.32,226.24,4.52]
[1757615493079,10.66773584,226.31,226.24,4.52]
[1757615493377,3.62773584,226.3,226.24,4.52]
[1757615493576,7.04,226.31,226.24,4.52]
[1757615493880,3.65225925,226.3,226.24,4.52]
[1757615494178,7.04,226.31,226.24,4.52]
[1757615494378,3.6517809,226.3,226.24,4.52]
[1757615494577,7.04,226.31,226.24,4.52]